bitfinex/quotes_BTCUSD_20250206
["timestamp","ask_amount","ask_price","bid_price","bid_amount"]
[1738862384216,0.16545819,96706.0,96705.0,0.10250365]
[1738862387359,0.01034919,96706.0,96705.0,0.10250365]
[1738862387730,0.16545819,96706.0,96705.0,0.10250365]
[1738862388591,0.01034919,96706.0,96705.0,0.10250365]
[1738862388821,0.16545819,96706.0,96705.0,0.10250365]
[1738862390367,0.06967817,96706.0,96685.0,0.00288243]
[1738862390507,0.16568247,96706.0,96705.0,0.10250365]
[1738862390712,0.31568247,96706.0,96705.0,0.10250365]
[1738862391115,0.775552,96705.0,96685.0,0.00288243]
[1738862391326,0.16057347,96706.0,96686.0,0.10250365]
[1738862391516,0.155139,96687.0,96686.0,0.10250365]
[1738862394071,0.155141,96686.0,96685.0,0.00288243]
[1738862394278,0.155141,96686.0,96685.0,0.10538608]
[1738862395379,0.155141,96686.0,96685.0,0.10838608]
[1738862396576,0.62683389,96686.0,96685.0,0.00588243]
[1738862396783,0.72804465,96686.0,96685.0,0.00588243]
[1738862397015,0.58324886,96686.0,96665.0,0.09658963]
[1738862397353,0.155173,96666.0,96665.0,0.09658963]
[1738862397712,0.155173,96666.0,96665.0,0.19909328]
[1738862398529,0.155173,96666.0,96665.0,0.09758963]
[1738862398530,0.3064661,96666.0,96665.0,0.09758963]
[1738862398893,0.155195,96652.0,96651.0,0.0731628]
[1738862399024,0.155195,96652.0,96651.0,0.17571281]
[1738862400249,0.672515,96652.0,96651.0,0.17571281]
[1738862400455,0.672515,96652.0,96651.0,0.07320916]
[1738862400655,1.02501865,96652.0,96651.0,0.05849454]
[1738862400863,1.02601865,96652.0,96651.0,0.03507231]
[1738862401277,1.06778285,96652.0,96651.0,0.03507231]
[1738862401629,0.9652792,96652.0,96651.0,0.03507231]
[1738862401856,0.93397111,96652.0,96651.0,0.03507231]
[1738862402061,0.84273111,96652.0,96651.0,0.03507231]
[1738862402456,0.84373111,96652.0,96651.0,0.03507231]
[1738862403264,0.83497111,96652.0,96651.0,0.03507231]
[1738862403435,0.52977611,96652.0,96651.0,0.13757596]
[1738862403855,0.52977611,96652.0,96651.0,0.29277296]
[1738862404087,0.51932,96652.0,96651.0,0.29277296]
[1738862404728,0.51732,96652.0,96651.0,0.29277296]
[1738862405070,0.51732,96652.0,96651.0,0.29577296]
[1738862405490,0.51732,96652.0,96651.0,0.31877296]
[1738862406089,0.38302378,96652.0,96651.0,0.31877296]
[1738862406310,0.15,96700.0,96659.0,0.206911]
[1738862406526,0.15,96700.0,96674.0,0.15516]
[1738862406725,0.02950867,96675.0,96674.0,0.15516]
[1738862406925,0.15,96699.0,96651.0,0.72106091]
[1738862407124,0.15,96689.0,96688.0,0.10250365]
[1738862407754,0.11515744,96700.0,96688.0,0.10250365]
[1738862407958,0.01025451,96701.0,96699.0,0.15512]
[1738862408072,0.01025451,96701.0,96700.0,0.10250365]
[1738862408267,4.64e-05,96701.0,96700.0,0.25762165]
[1738862409292,4.64e-05,96701.0,96700.0,0.10250365]
[1738862410678,4.64e-05,96701.0,96700.0,0.10450365]
[1738862410907,4.64e-05,96701.0,96700.0,0.10250365]
[1738862411224,4.64e-05,96701.0,96700.0,0.10450365]
[1738862411603,4.64e-05,96701.0,96700.0,0.10250365]
[1738862411809,4.64e-05,96701.0,96700.0,0.10550365]
[1738862412243,4.64e-05,96701.0,96700.0,0.10250365]
[1738862412586,0.1500464,96701.0,96700.0,0.002]
[1738862412855,0.1500464,96701.0,96700.0,0.10450365]
[1738862413035,0.3051634,96701.0,96700.0,0.10450365]
[1738862413805,0.3051634,96701.0,96700.0,0.10250365]
[1738862415088,0.3061634,96701.0,96700.0,0.10250365]
[1738862415343,0.0010464,96701.0,96651.0,0.03502595]
[1738862415541,0.11515744,96670.0,96656.0,0.206919]
[1738862415773,0.11515744,96670.0,96669.0,0.10250365]
[1738862415994,0.11515744,96679.0,96669.0,0.10250365]
[1738862416202,0.206879,96675.0,96669.0,0.10250365]
[1738862416307,0.155167,96670.0,96669.0,0.10250365]
[1738862417282,0.155166,96671.0,96669.0,0.10250365]
[1738862417495,0.206883,96673.0,96669.0,0.10250365]
[1738862417688,0.155165,96672.0,96669.0,0.10950365]
[1738862417893,0.12562052,96679.0,96669.0,0.10250365]
[1738862418093,0.155167,96670.0,96669.0,0.10250365]
[1738862418396,0.155167,96670.0,96669.0,0.10450365]
[1738862418772,0.155195,96652.0,96651.0,0.03502595]
[1738862418937,0.155195,96652.0,96651.0,0.13757596]
[1738862419348,0.11515744,96661.0,96651.0,0.13757596]
[1738862419565,0.155183,96660.0,96652.0,0.10250365]
[1738862419784,0.15519,96656.0,96652.0,0.10250365]
[1738862419985,0.11515744,96661.0,96652.0,0.10250365]
[1738862419986,0.155185,96659.0,96652.0,0.25769865]
[1738862420365,0.155188,96657.0,96652.0,0.10250365]
[1738862420565,0.155186,96658.0,96652.0,0.10250365]
[1738862420971,0.155186,96658.0,96652.0,0.10450365]
[1738862421169,0.155188,96657.0,96652.0,0.10450365]
[1738862421369,0.155188,96657.0,96652.0,0.10250365]
[1738862421570,0.155184,96659.0,96652.0,0.25869765]
[1738862421820,0.11515744,96661.0,96652.0,0.10350365]
[1738862422021,0.01019892,96660.0,96652.0,0.10250365]
[1738862422226,0.11515744,96661.0,96658.0,0.155184]
[1738862422526,0.155176,96664.0,96659.0,0.10250365]
[1738862422733,0.155178,96663.0,96659.0,0.10250365]
[1738862423048,0.155183,96660.0,96659.0,0.10250365]
[1738862423408,0.206904,96664.0,96659.0,0.10250365]
[1738862423609,0.155183,96660.0,96659.0,0.10250365]
[1738862424185,0.155182,96661.0,96659.0,0.10250365]
[1738862424666,0.155183,96660.0,96659.0,0.10250365]
[1738862427551,0.15647621,96660.0,96659.0,0.10250365]
[1738862427754,0.155183,96660.0,96659.0,0.10250365]
[1738862428586,0.155195,96652.0,96651.0,0.03507231]
[1738862428790,0.15648838,96652.0,96651.0,0.13757596]
[1738862428963,0.155195,96652.0,96651.0,0.13757596]
[1738862429366,0.155195,96652.0,96651.0,0.03507231]
[1738862429565,0.15648844,96652.0,96651.0,0.03507231]
[1738862429995,0.155195,96652.0,96651.0,0.03507231]
[1738862430374,0.15648845,96652.0,96651.0,0.03507231]
[1738862430641,0.155195,96652.0,96651.0,0.03507231]
[1738862430847,0.003,96652.0,96651.0,0.13757596]
[1738862430976,0.158195,96652.0,96651.0,0.13757596]
[1738862431176,0.155195,96652.0,96651.0,0.13757596]
[1738862431699,0.158195,96652.0,96651.0,0.13757596]
[1738862432019,0.155195,96652.0,96651.0,0.13757596]
[1738862432382,0.156195,96652.0,96651.0,0.13757596]
[1738862432766,0.01116517,96652.0,96651.0,0.13757596]
[1738862432965,0.01116517,96652.0,96651.0,0.1425666]
[1738862433410,0.01116517,96652.0,96651.0,0.2977636]
[1738862433591,0.16636017,96652.0,96651.0,0.1425666]
[1738862433791,0.16536017,96652.0,96651.0,0.1425666]
[1738862434014,0.16536017,96652.0,96651.0,0.13757596]
[1738862434303,0.01116517,96652.0,96651.0,0.14256586]
[1738862434856,0.16636017,96652.0,96651.0,0.14256586]
[1738862435237,0.16636017,96652.0,96651.0,0.13757596]
[1738862435442,0.01116517,96652.0,96651.0,0.14256618]
[1738862435647,0.16636017,96652.0,96651.0,0.14256618]
[1738862435841,0.16636017,96652.0,96651.0,0.13757596]
[1738862436063,0.16636017,96652.0,96651.0,0.14256716]
[1738862436064,0.22438079,96652.0,96651.0,0.14256716]
[1738862436266,0.16636017,96652.0,96651.0,0.04006351]
[1738862436465,0.16636017,96652.0,96651.0,0.03507231]
[1738862436664,0.16765357,96652.0,96651.0,0.03507231]
[1738862437485,1.00537357,96652.0,96651.0,0.03507231]
[1738862437682,1.00408017,96652.0,96651.0,0.03507231]
[1738862437889,0.155223,96635.0,96634.0,0.0001069]
[1738862438132,0.672543,96635.0,96634.0,0.10265696]
[1738862439598,0.673543,96635.0,96634.0,0.00015331]
[1738862439803,0.672543,96635.0,96634.0,0.00015331]
[1738862439969,0.674543,96635.0,96634.0,0.00015331]
[1738862440374,0.673543,96635.0,96634.0,0.00015331]
[1738862440790,0.674543,96635.0,96634.0,0.00015331]
[1738862442265,0.68472642,96635.0,96634.0,0.00015331]
[1738862443447,1.00512642,96635.0,96634.0,0.00015331]
[1738862446098,1.10763007,96635.0,96634.0,0.00015331]
[1738862446302,1.00512642,96635.0,96634.0,0.00015331]
[1738862447779,0.68472642,96635.0,96634.0,0.00015331]
[1738862453998,0.93472642,96635.0,96634.0,0.00015331]
[1738862454845,0.93372642,96635.0,96634.0,0.00015331]
[1738862455217,0.93572642,96635.0,96634.0,0.00015331]
[1738862455418,0.93272642,96635.0,96634.0,0.00015331]
[1738862455847,0.94444642,96635.0,96634.0,0.00015331]
[1738862456192,0.94344642,96635.0,96634.0,0.00015331]
[1738862456520,0.94444642,96635.0,96634.0,0.00015331]
[1738862456969,0.98172394,96635.0,96634.0,0.00015331]
[1738862458784,0.94444642,96635.0,96634.0,0.00015331]
[1738862459192,0.84444642,96635.0,96634.0,0.00015331]
[1738862459850,0.83572642,96635.0,96634.0,0.00015331]
[1738862460666,0.53050342,96635.0,96634.0,0.10265696]
[1738862460860,0.68572642,96635.0,96634.0,0.10265696]
[1738862461677,0.68472642,96635.0,96634.0,0.10265696]
[1738862461853,0.52850342,96635.0,96634.0,0.10265696]
[1738862462070,0.52950342,96635.0,96634.0,0.10265696]
[1738862462279,0.52950342,96635.0,96634.0,0.2629104]
[1738862462460,0.52750342,96635.0,96634.0,0.2629104]
[1738862462659,0.52950342,96635.0,96634.0,0.1076864]
[1738862462980,0.52850342,96635.0,96634.0,0.2629104]
[1738862463182,0.52750342,96635.0,96634.0,0.2629104]
[1738862463387,0.52750342,96635.0,96634.0,0.2639104]
[1738862463624,0.52750342,96635.0,96634.0,0.2629104]
[1738862464900,0.73547676,96635.0,96634.0,0.00718275]
[1738862465107,0.155239,96625.0,96624.0,0.1609715]
[1738862465310,0.672559,96625.0,96624.0,0.15447774]
[1738862465557,0.672559,96625.0,96624.0,0.16288706]
[1738862465810,0.672559,96625.0,96624.0,0.15447774]
[1738862466017,0.672559,96625.0,96624.0,0.25698139]
[1738862466219,0.51732,96625.0,96624.0,0.26539208]
[1738862467794,0.51732,96625.0,96624.0,0.42063208]
[1738862468213,0.51732,96625.0,96624.0,0.42163208]
[1738862468404,0.51732,96625.0,96624.0,0.42063208]
[1738862468808,0.51732,96625.0,96624.0,0.42363208]
[1738862468993,0.51732,96625.0,96624.0,0.42063208]
[1738862469520,0.51732,96625.0,96624.0,0.42163208]
[1738862469655,0.51732,96625.0,96624.0,0.42063208]
[1738862469865,0.51732,96625.0,96624.0,0.42463208]
[1738862471074,0.51732,96625.0,96624.0,0.42163208]
[1738862471332,0.51732,96625.0,96624.0,0.42663208]
[1738862471747,0.51732,96625.0,96624.0,0.42163208]
[1738862471877,0.51732,96625.0,96624.0,0.42663208]
[1738862472310,0.51732,96625.0,96624.0,0.42563208]
[1738862472735,0.51732,96625.0,96624.0,0.42063208]
[1738862472961,0.51732,96625.0,96624.0,0.42163208]
[1738862473167,0.51732,96625.0,96624.0,0.42663208]
[1738862473853,0.51732,96625.0,96624.0,0.27139208]
[1738862474034,0.51732,96625.0,96624.0,0.27039208]
[1738862474300,0.69099415,96625.0,96624.0,0.26539208]
[1738862474508,0.672559,96625.0,96624.0,0.26639208]
[1738862474707,0.672559,96625.0,96624.0,0.27139208]
[1738862474863,0.672559,96625.0,96624.0,0.26539208]
[1738862475269,0.672559,96625.0,96624.0,0.27139208]
[1738862475605,0.51732,96625.0,96624.0,0.27139208]
[1738862475817,0.51732,96625.0,96624.0,0.27039208]
[1738862476016,0.59701393,96625.0,96624.0,0.26639208]
[1738862476215,0.60735034,96625.0,96624.0,0.27139208]
[1738862476434,0.68289541,96625.0,96624.0,0.27139208]
[1738862477413,0.68289541,96625.0,96624.0,0.27039208]
[1738862477622,0.68289541,96625.0,96624.0,0.26539208]
[1738862477845,0.68289541,96625.0,96624.0,0.26639208]
[1738862478045,0.68289541,96625.0,96624.0,0.26539208]
[1738862478460,0.68289541,96625.0,96624.0,0.26639208]
[1738862478789,0.68289541,96625.0,96624.0,0.16388843]
[1738862479112,0.68289541,96625.0,96624.0,0.15547774]
[1738862479314,0.68289541,96625.0,96624.0,0.25798139]
[1738862480384,0.68289541,96625.0,96624.0,0.26639439]
[1738862480736,0.78539906,96625.0,96624.0,0.26639439]
[1738862481271,0.68289541,96625.0,96624.0,0.25798139]
[1738862482645,0.52765641,96625.0,96624.0,0.26639439]
[1738862483227,0.68289541,96625.0,96624.0,0.26639439]
[1738862483590,0.52765641,96625.0,96624.0,0.26639439]
[1738862484542,0.68289541,96625.0,96624.0,0.26639439]
[1738862485629,0.52765641,96625.0,96624.0,0.26639439]
[1738862486776,0.51732,96625.0,96624.0,0.42163439]
[1738862486962,0.51732,96625.0,96624.0,0.41322139]
[1738862487180,0.51732,96625.0,96624.0,0.42163498]
[1738862487601,0.51732,96625.0,96624.0,0.49793498]
[1738862488338,0.51732,96625.0,96624.0,0.52093498]
[1738862488742,0.51732,96625.0,96624.0,0.51993498]
[1738862489114,0.51732,96625.0,96624.0,0.57173498]
[1738862489317,0.51754428,96625.0,96624.0,0.57173498]
[1738862490385,0.51754428,96625.0,96624.0,0.56873498]
[1738862490585,0.51754428,96625.0,96624.0,0.57473498]
[1738862490786,0.51754428,96625.0,96624.0,0.57373498]
[1738862491001,0.51754428,96625.0,96624.0,0.56773498]
[1738862491156,0.51754428,96625.0,96624.0,0.57573498]
[1738862492003,0.51754428,96625.0,96624.0,0.55273498]
[1738862492200,0.51754428,96625.0,96624.0,0.27339498]
[1738862493106,0.51754428,96625.0,96624.0,0.27139498]
[1738862493282,0.51754428,96625.0,96624.0,0.26539498]
[1738862493487,0.51754428,96625.0,96624.0,0.26639498]
[1738862493681,0.51754428,96625.0,96624.0,0.27139498]
[1738862494002,0.51754428,96625.0,96624.0,0.27039498]
[1738862494206,0.51754428,96625.0,96624.0,0.27139498]
[1738862494795,0.51754428,96625.0,96624.0,0.27143528]
[1738862496315,0.51754428,96625.0,96624.0,0.42667528]
[1738862496543,0.51754428,96625.0,96624.0,0.42067528]
[1738862496857,0.51754428,96625.0,96624.0,0.42567528]
[1738862498056,0.51754428,96625.0,96624.0,0.27043528]
[1738862498777,0.51754428,96625.0,96624.0,0.42567528]
[1738862500182,0.51754428,96625.0,96624.0,0.27043528]
[1738862500587,0.51754428,96625.0,96624.0,0.42567528]
[1738862503021,0.51754428,96625.0,96624.0,0.27043528]
[1738862504368,0.51754428,96625.0,96624.0,0.42567528]
[1738862509313,0.71025627,96625.0,96624.0,0.27043528]
[1738862509517,0.67278328,96625.0,96624.0,0.27043528]
[1738862509827,0.67278328,96625.0,96624.0,0.26202169]
[1738862510227,0.67278328,96625.0,96624.0,0.25702169]
[1738862510438,0.67278328,96625.0,96624.0,0.26709493]
[1738862510616,0.51754428,96625.0,96624.0,0.26809493]
[1738862512094,0.51754428,96625.0,96624.0,0.26709493]
[1738862512322,0.51754428,96625.0,96624.0,0.26409493]
[1738862512528,0.51754428,96625.0,96624.0,0.26509493]
[1738862512749,0.51754428,96625.0,96624.0,0.42033493]
[1738862513871,0.51754428,96625.0,96624.0,0.26509493]
[1738862514459,0.67278328,96625.0,96624.0,0.26509493]
[1738862514615,0.51754428,96625.0,96624.0,0.26509493]
[1738862514824,0.51754428,96625.0,96624.0,0.25802169]
[1738862515184,0.51754428,96625.0,96624.0,0.26509579]
[1738862517969,0.51754428,96625.0,96624.0,0.42033579]
[1738862518173,0.51754428,96625.0,96624.0,0.26509579]
[1738862518704,0.51754428,96625.0,96624.0,0.42033579]
[1738862519081,0.51754428,96625.0,96624.0,0.26509579]
[1738862519260,0.51754428,96625.0,96624.0,0.42033579]
[1738862521136,0.72557412,96625.0,96624.0,0.26509579]
[1738862521344,0.67278328,96625.0,96624.0,0.16259214]
[1738862521462,0.67278328,96625.0,96624.0,0.15551804]
[1738862521663,0.71928328,96625.0,96624.0,0.15551804]
[1738862522085,0.51754428,96625.0,96624.0,0.25802169]
[1738862522337,0.67278328,96625.0,96624.0,0.26292907]
[1738862522525,0.67378328,96625.0,96624.0,0.26292907]
[1738862522722,0.67578328,96625.0,96624.0,0.26292907]
[1738862523133,0.67478328,96625.0,96624.0,0.26292907]
[1738862523311,0.67278328,96625.0,96624.0,0.16042542]
[1738862523507,0.67278328,96625.0,96624.0,0.15451804]
[1738862523779,0.67278328,96625.0,96624.0,0.15551804]
[1738862523949,0.67278328,96625.0,96624.0,0.15451804]
[1738862524145,0.77528693,96625.0,96624.0,0.15451804]
[1738862524332,0.77728693,96625.0,96624.0,0.15451804]
[1738862524537,0.77828693,96625.0,96624.0,0.15451804]
[1738862524741,0.75508328,96625.0,96624.0,0.15451804]
[1738862524970,0.75408328,96625.0,96624.0,0.15451804]
[1738862525170,0.90408328,96625.0,96624.0,0.15451804]
[1738862525373,0.90508328,96625.0,96624.0,0.15451804]
[1738862526716,1.22548328,96625.0,96624.0,0.15451804]
[1738862528335,1.30172741,96625.0,96624.0,0.15451804]
[1738862528511,1.22548328,96625.0,96624.0,0.15451804]
[1738862528957,1.22548328,96625.0,96624.0,0.25702169]
[1738862529159,0.84094428,96625.0,96624.0,0.25702169]
[1738862529374,0.84094428,96625.0,96624.0,0.2629348]
[1738862529575,0.99618328,96625.0,96624.0,0.2629348]
[1738862529934,1.09768693,96625.0,96624.0,0.2629348]
[1738862530135,1.09568693,96625.0,96624.0,0.15451804]
[1738862530731,0.99318328,96625.0,96624.0,0.15451804]
[1738862530931,0.99518328,96625.0,96624.0,0.15451804]
[1738862532120,0.99618328,96625.0,96624.0,0.15451804]
[1738862532825,0.99618328,96625.0,96624.0,0.25702169]
[1738862533036,0.84094428,96625.0,96624.0,0.25702169]
[1738862533867,0.99418328,96625.0,96624.0,0.25702169]
[1738862534068,0.99618328,96625.0,96624.0,0.25702169]
[1738862534388,0.99418328,96625.0,96624.0,0.25702169]
[1738862534790,1.09568693,96625.0,96624.0,0.25702169]
[1738862535012,1.09668693,96625.0,96624.0,0.15451804]
[1738862535432,0.99318328,96625.0,96624.0,0.15451804]
[1738862535837,0.99418328,96625.0,96624.0,0.15451804]
[1738862536380,0.99518328,96625.0,96624.0,0.15451804]
[1738862536787,0.99418328,96625.0,96624.0,0.15451804]
[1738862537014,0.99618328,96625.0,96624.0,0.15451804]
[1738862538046,1.04592892,96625.0,96624.0,0.15451804]
[1738862538632,0.99618328,96625.0,96624.0,0.15451804]
[1738862542478,1.14618328,96625.0,96624.0,0.15451804]
[1738862542679,1.32408328,96625.0,96624.0,0.15451804]
[1738862542851,1.32408328,96625.0,96624.0,0.15166861]
[1738862543358,0.155258,96613.0,96612.0,6.2043525]
[1738862543593,0.672578,96613.0,96612.0,6.30731804]
[1738862545401,0.68261879,96613.0,96612.0,6.30731804]
[1738862545603,0.68261879,96613.0,96612.0,6.30831804]
[1738862546191,0.68261879,96613.0,96612.0,6.30842484]
[1738862548621,0.75416343,96613.0,96612.0,6.30842484]
[1738862548821,0.68261879,96613.0,96612.0,6.30842484]
[1738862549170,0.52736079,96613.0,96612.0,6.30842484]
[1738862549386,0.52736079,96613.0,96612.0,6.54658484]
[1738862549591,0.68261879,96613.0,96612.0,6.39132484]
[1738862549771,0.52736079,96613.0,96612.0,6.39132484]
[1738862550213,0.52736079,96613.0,96612.0,6.54658484]
[1738862550421,0.52736079,96613.0,96612.0,6.39132484]
[1738862550671,0.68261879,96613.0,96612.0,6.30842484]
[1738862550916,0.52736079,96613.0,96612.0,6.30842484]
[1738862551908,0.68261879,96613.0,96612.0,6.30842484]
[1738862552110,0.72411191,96613.0,96612.0,6.30842484]
[1738862552686,0.68261879,96613.0,96612.0,6.30842484]
[1738862554969,0.52736079,96613.0,96612.0,6.30842484]
[1738862555546,0.68261879,96613.0,96612.0,6.30842484]
[1738862558313,0.52736079,96613.0,96612.0,6.30842484]
[1738862558898,0.52736079,96613.0,96612.0,6.60120424]
[1738862559082,0.51732,96613.0,96612.0,6.60120424]
[1738862559484,0.51732,96613.0,96612.0,6.47560424]
[1738862559690,0.5175445,96613.0,96612.0,6.47560424]
[1738862561212,0.5175445,96613.0,96612.0,6.32034424]
[1738862562699,0.6728025,96613.0,96612.0,6.32034424]
[1738862564300,0.5175445,96613.0,96612.0,6.32034424]
[1738862571748,0.6728025,96613.0,96612.0,6.32034424]
[1738862580714,0.5175445,96613.0,96612.0,6.32034424]
[1738862580895,0.6728025,96613.0,96612.0,6.32185224]
[1738862585883,0.5175445,96613.0,96612.0,6.32185224]
[1738862586705,0.6728025,96613.0,96612.0,6.32185224]
[1738862586904,0.5175445,96613.0,96612.0,6.32185224]
[1738862587763,0.5175445,96613.0,96612.0,6.44755224]
[1738862588393,0.5175445,96613.0,96612.0,6.60281224]
[1738862588943,0.5175445,96613.0,96612.0,6.44755224]
[1738862589552,0.5175445,96613.0,96612.0,6.44655224]
[1738862589754,0.5175445,96613.0,96612.0,6.45155224]
[1738862589963,0.5175445,96613.0,96612.0,6.77581224]
[1738862590143,0.38484235,96613.0,96612.0,6.82812363]
[1738862590338,0.00579246,96613.0,96612.0,7.19157583]
[1738862590543,0.05687558,96635.0,96612.0,7.19157583]
[1738862590905,0.05687558,96635.0,96634.0,0.48952765]
[1738862591213,0.05687558,96635.0,96634.0,0.49444605]
[1738862591342,0.09211784,96636.0,96635.0,0.225]
[1738862591549,0.09211784,96636.0,96635.0,0.32750365]
[1738862592189,0.09211784,96636.0,96635.0,0.33242205]
[1738862592610,0.09211784,96636.0,96635.0,0.34142205]
[1738862593001,0.09211784,96636.0,96635.0,0.34542205]
[1738862593587,0.09211784,96636.0,96635.0,0.36563534]
[1738862593785,0.00022428,96651.0,96648.0,0.1552]
[1738862594041,0.00022428,96651.0,96650.0,0.10250365]
[1738862594206,0.00022428,96651.0,96650.0,0.17900365]
[1738862595241,0.00022428,96651.0,96650.0,0.18892205]
[1738862595823,0.00022428,96651.0,96650.0,0.11242205]
[1738862596040,0.00022428,96651.0,96650.0,0.10942205]
[1738862596370,0.00022428,96651.0,96650.0,0.11342205]
[1738862596574,0.00022428,96651.0,96650.0,0.10942205]
[1738862596978,0.00022428,96651.0,96650.0,0.11142205]
[1738862597329,0.00022428,96651.0,96650.0,0.10942205]
[1738862597530,0.00022428,96651.0,96650.0,0.11042205]
[1738862601198,0.15542128,96651.0,96650.0,0.11042205]
[1738862601399,0.00022428,96651.0,96650.0,0.11042205]
[1738862602844,0.15542128,96651.0,96650.0,0.11042205]
[1738862604804,0.00022428,96651.0,96650.0,0.11042205]
[1738862605385,0.00022428,96651.0,96650.0,0.26562105]
[1738862605589,0.00022428,96651.0,96650.0,0.11042205]
[1738862605815,0.00022428,96651.0,96650.0,0.26562105]
[1738862606010,0.00022428,96651.0,96650.0,0.11042205]
[1738862607765,0.00022428,96651.0,96650.0,0.18722205]
[1738862608120,0.00022428,96651.0,96650.0,0.34242105]
[1738862608536,0.00022428,96651.0,96650.0,0.11042205]
[1738862609298,0.00022428,96651.0,96650.0,0.26562105]
[1738862610813,0.00022428,96651.0,96650.0,0.11042205]
[1738862611220,0.15542128,96651.0,96650.0,0.11042205]
[1738862611411,0.00022428,96651.0,96650.0,0.11042205]
[1738862612665,0.00022428,96651.0,96650.0,0.26562105]
[1738862615677,0.00022428,96651.0,96650.0,0.34412105]
[1738862616349,0.00022428,96651.0,96650.0,0.41282105]
[1738862617099,0.00022428,96651.0,96650.0,0.41082105]
[1738862617296,0.00022428,96651.0,96650.0,0.40982105]
[1738862617435,0.00022428,96651.0,96650.0,0.41282105]
[1738862618673,0.00022428,96651.0,96650.0,0.41082105]
[1738862618994,0.00022428,96651.0,96650.0,0.41882105]
[1738862619520,0.00022428,96651.0,96650.0,0.42182105]
[1738862620793,0.00022428,96651.0,96650.0,0.57182105]
[1738862621194,2.8e-07,96651.0,96650.0,0.57182105]
[1738862622188,2.8e-07,96651.0,96650.0,0.55982105]
[1738862622438,2.8e-07,96651.0,96650.0,0.56482105]
[1738862622638,2.8e-07,96651.0,96650.0,0.57382105]
[1738862623276,2.8e-07,96651.0,96650.0,0.56882105]
[1738862623430,2.8e-07,96651.0,96650.0,0.56482105]
[1738862623637,2.8e-07,96651.0,96650.0,0.57382105]
[1738862624042,2.8e-07,96651.0,96650.0,0.56882105]
[1738862625146,2.8e-07,96651.0,96650.0,0.55982105]
[1738862625324,2.8e-07,96651.0,96650.0,0.57282105]
[1738862625525,2.8e-07,96651.0,96650.0,0.56382105]
[1738862625727,2.8e-07,96651.0,96650.0,0.55982105]
[1738862625926,2.8e-07,96651.0,96650.0,0.57882105]
[1738862626130,2.8e-07,96651.0,96650.0,0.62504783]
[1738862626569,2.8e-07,96651.0,96650.0,0.62104783]
[1738862626728,2.8e-07,96651.0,96650.0,0.61204783]
[1738862626948,2.8e-07,96651.0,96650.0,0.62604783]
[1738862628091,2.8e-07,96651.0,96650.0,1.48814783]
[1738862628308,2.8e-07,96651.0,96650.0,1.47414783]
[1738862628508,2.8e-07,96651.0,96650.0,1.48314783]
[1738862628654,2.8e-07,96651.0,96650.0,1.48914783]
[1738862633224,2.8e-07,96651.0,96650.0,1.49376001]
[1738862633447,2.8e-07,96651.0,96650.0,1.19388404]
[1738862633657,2.8e-07,96651.0,96650.0,1.18927186]
[1738862634318,2.8e-07,96651.0,96650.0,1.19388404]
[1738862635006,2.8e-07,96651.0,96650.0,1.18788404]
[1738862635554,2.8e-07,96651.0,96650.0,1.17888404]
[1738862635761,2.8e-07,96651.0,96650.0,1.17988404]
[1738862636695,2.8e-07,96651.0,96650.0,1.15566001]
[1738862638324,2.8e-07,96651.0,96650.0,1.17988404]
[1738862640719,2.8e-07,96651.0,96650.0,1.16527186]
[1738862640960,2.8e-07,96651.0,96650.0,1.12804783]
[1738862641519,2.8e-07,96651.0,96650.0,1.15104783]
[1738862641929,2.8e-07,96651.0,96650.0,1.15127211]
[1738862642171,2.8e-07,96651.0,96650.0,1.25055211]
[1738862642376,8e-08,96651.0,96650.0,1.25055211]
[1738862642566,8e-08,96651.0,96650.0,1.04665211]
[1738862644506,8e-08,96651.0,96650.0,1.07087614]
[1738862644702,0.00022428,96692.0,96682.0,0.01]
[1738862644874,0.08292434,96686.0,96685.0,0.43064565]
[1738862645078,0.0001296,96686.0,96685.0,0.43064565]
[1738862645701,0.0001296,96686.0,96685.0,0.43405605]
[1738862646526,0.0001296,96686.0,96685.0,0.44305605]
[1738862646697,0.0001296,96686.0,96685.0,0.44705605]
[1738862646906,0.0001296,96686.0,96685.0,0.55633605]
[1738862647638,0.0001296,96686.0,96685.0,0.57711598]
[1738862647997,0.0001296,96686.0,96685.0,0.56411598]
[1738862648451,0.0001296,96686.0,96685.0,0.57611598]
[1738862648629,0.0001296,96686.0,96685.0,0.56711598]
[1738862648850,0.0001296,96686.0,96685.0,0.57457139]
[1738862649080,0.0001296,96686.0,96685.0,0.58357139]
[1738862649398,0.0001296,96686.0,96685.0,0.58757139]
[1738862649604,8.8e-07,96692.0,96689.0,0.01]
[1738862649736,8.8e-07,96692.0,96691.0,0.45063665]
[1738862650642,8.8e-07,96692.0,96691.0,0.44404705]
[1738862650905,8.8e-07,96692.0,96691.0,0.45404705]
[1738862651056,8.8e-07,96692.0,96691.0,0.44404705]
[1738862651628,8.8e-07,96692.0,96691.0,0.48621268]
[1738862652102,8.8e-07,96692.0,96691.0,0.53851268]
[1738862652304,8.8e-07,96692.0,96691.0,0.54751268]
[1738862653340,0.00022428,96710.0,96699.0,0.16512]
[1738862653341,1.6e-07,96700.0,96699.0,0.16512]
[1738862653647,1.6e-07,96700.0,96699.0,0.53012365]
[1738862653777,1.6e-07,96700.0,96699.0,0.53353405]
[1738862653978,4.4e-07,96706.0,96705.0,0.31511]
[1738862654184,4.4e-07,96706.0,96705.0,0.77471365]
[1738862654787,7.2e-07,96710.0,96709.0,0.338104]
[1738862654963,7.2e-07,96710.0,96709.0,0.44060765]
[1738862655163,7.2e-07,96710.0,96709.0,0.47276136]
[1738862655876,7.2e-07,96710.0,96709.0,0.93557176]
[1738862656250,5e-07,96722.0,96721.0,0.315085]
[1738862656437,0.00013972,96722.0,96721.0,0.44058865]
[1738862656836,7.2e-07,96722.0,96721.0,0.43399905]
[1738862657839,7.2e-07,96722.0,96721.0,0.44299905]
[1738862658328,7.2e-07,96722.0,96721.0,0.44499905]
[1738862659045,0.15999474,96743.0,96722.0,0.173]
[1738862659277,0.0817,96749.0,96745.0,0.155046]
[1738862659473,0.04946398,96746.0,96745.0,0.28054965]
[1738862659783,0.04946398,96746.0,96745.0,0.28396005]
[1738862660811,0.04946398,96746.0,96745.0,0.29296005]
[1738862661246,0.04946398,96746.0,96745.0,0.29596005]
[1738862661646,0.04946398,96746.0,96745.0,0.30815423]
[1738862661925,0.0493723,96746.0,96745.0,0.31415423]
[1738862662111,0.0493723,96746.0,96745.0,0.31715423]
[1738862662309,0.00046398,96746.0,96745.0,0.46715423]
[1738862663314,0.00046398,96746.0,96745.0,0.46415423]
[1738862663520,7.8e-07,96748.0,96747.0,0.328043]
[1738862663729,7.8e-07,96748.0,96747.0,0.43054665]
[1738862663928,7.8e-07,96748.0,96747.0,0.43395705]
[1738862664081,7.8e-07,96748.0,96747.0,0.44395705]
[1738862665066,7.8e-07,96748.0,96747.0,0.44295705]
[1738862665266,7.8e-07,96748.0,96747.0,0.43895705]
[1738862665476,7.8e-07,96748.0,96747.0,0.44795705]
[1738862666098,7.8e-07,96748.0,96747.0,0.55719705]
[1738862666576,7.8e-07,96748.0,96747.0,0.55219705]
[1738862666783,7.8e-07,96748.0,96747.0,0.55719705]